[Event "Balkan Youth Online-ch 2020"]
[Site "Online"]
[Date "2020.10.31"]
[Round "3.87"]
[White "Sural, Ceren"]
[Black "Tsampouli, Vasiliki"]
[Result "1-0"]
[ECO "C54"]
[WhiteElo "1686"]
[BlackElo "1549"]
[Annotator "NA RC"]
[PlyCount "89"]
[EventDate "2020.10.31"]
[EventType "swiss"]
[SourceTitle "playchess.com"]
[Source "ChessBase"]
[SourceQuality "1"]
[TimeControl "1500+5"]

1. e4 {[%emt 0:00:00]} e5 {[%emt 0:00:00]} 2. Nf3 {[%emt 0:00:00]} Nc6 {[%emt 0:00:00]} 3. Bc4 {[%emt 0:00:00]} Bc5 {[%emt 0:00:00]} 4. c3 {[%emt 0:00:00]} Nf6 {[%emt 0:00:00]} 5. d3 {[%emt 0:00:00]} d6 {[%emt 0:00:00]} 6. h3 {[%emt 0:00:00]} a6 {[%emt 0:00:04]} 7. Bb3 {[%emt 0:00:38]} Ba7 {[%emt 0:00:28]} 8. Nbd2 {[%emt 0:00:20]} Ne7 {[%emt 0:00:06]} 9. Qe2 {[%emt 0:01:38]} Ng6 {[%emt 0:00:25]} 10. g3 {[%emt 0:00:15]} Be6 {[%emt 0:01:10]} 11. Ng5 {[%emt 0:01:51]} Bxb3 {[%emt 0:00:30]} 12. axb3 {[%emt 0:00:14]} O-O {[%emt 0:00:05]} 13. Nf1 {[%emt 0:00:55]} h6 {[%emt 0:01:27]} 14. Nf3 {[%emt 0:00:08]} c6 {[%emt 0:01:09]} 15. Ne3 {[%emt 0:03:02]} d5 {[%emt 0:00:31]} 16. Nf5 {[%emt 0:01:30]} Re8 {[%emt 0:00:50]} 17. N3h4 {[%emt 0:00:23]} Ne7 {[%emt 0:01:02]} 18. Nxe7+ {[%emt 0:00:09]} Qxe7 {[%emt 0:00:03]} 19. Nf5 {[%emt 0:00:01]} Qe6 {[%emt 0:00:00]} 20. b4 {[%emt 0:00:13]} Rad8 {[%emt 0:00:43]} 21. g4 {[%emt 0:00:04]} Kh7 {[%emt 0:02:44]} 22. g5 {[%emt 0:02:41]} hxg5 {[%emt 0:01:05]} 23. Bxg5 {[%emt 0:00:10]} g6 {[%emt 0:00:31]} 24. Ng3 {[%emt 0:00:52]} Rc8 {[%emt 0:03:22]} 25. Nf1 {[%emt 0:03:02]} Nh5 {[%emt 0:01:10]} 26. Qg4 {[%emt 0:01:28]} Kg7 {[%emt 0:00:49]} 27. Qxe6 {[%emt 0:01:38]} Rxe6 {[%emt 0:00:01]} 28. Be3 {[%emt 0:00:22]} Bxe3 {[%emt 0:00:10]} 29. fxe3 {[%emt 0:00:00]} dxe4 {[%emt 0:00:01]} 30. dxe4 {[%emt 0:00:00]} Rd8 {[%emt 0:00:06]} 31. Rd1 {[%emt 0:00:24]} Red6 {[%emt 0:00:00]} 32. Rxd6 {[%emt 0:00:11]} Rxd6 {[%emt 0:00:00]} 33. Rg1 {[%emt 0:00:13]} Nf6 {[%emt 0:00:46]} 34. Ng3 {[%emt 0:00:09]} Kh6 {[%emt 0:00:07]} 35. Ke2 {[%emt 0:00:36]} Nd7 {[%emt 0:00:36]} 36. Rf1 {[%emt 0:00:27]} f6 {[%emt 0:00:18]} 37. h4 {[%emt 0:00:28]} c5 {[%emt 0:01:31]} 38. bxc5 {[%emt 0:00:57]} Nxc5 {[%emt 0:00:00]} 39. h5 {[%emt 0:00:18]} Rd7 {[%emt 0:01:05]} 40. Rxf6 {[%emt 0:00:18]} Na4 {[%emt 0:00:52]} 41. hxg6 {[%emt 0:00:45]} Kg7 {[%emt 0:00:27]} 42. Re6 {[%emt 0:00:09]} Nxb2 {[%emt 0:00:24]} 43. Nf5+ {[%emt 0:00:23]} Kf8 {[%emt 0:00:25]} 44. g7+ {[%emt 0:00:32]} Kf7 {[%emt 0:00:12]} 45. Re8 {[%emt 0:00:18]} 1-0

[Event "Balkan Youth Online-ch 2020"]
[Site "Online"]
[Date "2020.10.31"]
[Round "3.88"]
[White "Anghel, Maria"]
[Black "Ivanovic, Tara"]
[Result "1/2-1/2"]
[ECO "D37"]
[WhiteElo "1826"]
[BlackElo "1283"]
[Annotator "NA RC"]
[PlyCount "76"]
[EventDate "2020.10.31"]
[EventType "swiss"]
[SourceTitle "playchess.com"]
[Source "ChessBase"]
[SourceQuality "1"]
[TimeControl "5400+30"]

1. d4 {[%emt 1:05:20]} d5 {[%emt 1:05:22]} 2. c4 {[%emt 0:00:28]} e6 {[%emt 0:00:22]} 3. Nc3 {[%emt 0:00:24]} Nf6 {[%emt 0:00:22]} 4. Nf3 {[%emt 0:00:22]} Nbd7 {[%emt 0:00:28]} 5. cxd5 {[%emt 0:02:03]} Nxd5 {[%emt 0:00:26]} 6. Nxd5 {[%emt 0:01:28] D37: Queen's Gambit Declined: 5 Bf4.} exd5 {[%emt 0:00:23]} 7. Bf4 {[%emt 0:01:03]} Bb4+ {[%emt 0:00:38]} 8. Nd2 {[%emt 0:01:12]} O-O {[%emt 0:00:34]} 9. a3 {[%emt 0:01:22]} Ba5 {[%emt 0:00:32]} 10. b4 {[%emt 0:00:43]} Bb6 {[%emt 0:00:23]} 11. e3 {[%emt 0:00:26] [#]} Nf6 $146 {[%emt 0:00:27]} ({Predecessor:} 11... Re8 12. Nf3 a5 13. Bd3 Nf8 14. O-O axb4 15. axb4 Bg4 16. Rxa8 Qxa8 17. Qc2 Bxf3 18. gxf3 {½-½ (53) Gazik,R (2171)-Sarmir,M (2151) Slovakia 2004}) 12. Bd3 {[%emt 0:00:45]} Bg4 {[%emt 0:00:57]} 13. Qc2 {[%emt 0:01:28]} c6 {[%emt 0:00:39]} 14. O-O {[%emt 0:01:21]} Bc7 {[%emt 0:00:33]} 15. Bg5 {[%emt 0:00:54]} Qd6 {[%emt 0:00:27]} 16. Bf4 {[%emt 0:01:47]} Qd7 {[%emt 0:00:55]} 17. Be5 {[%emt 0:01:24]} h6 {[%emt 0:00:49]} 18. h3 {[%emt 0:02:26]} Bh5 {[%emt 0:01:59]} 19. Bf5 {[%emt 0:03:53]} Qe7 {[%emt 0:00:37]} 20. Bxc7 {[%emt 0:00:34]} Qxc7 {[%emt 0:00:23]} 21. g4 {[%emt 0:00:51]} Bg6 {[%emt 0:00:30]} 22. Bxg6 {[%emt 0:00:28]} fxg6 {[%emt 0:00:21]} 23. Qxg6 {[%emt 0:00:28]} Rf7 {[%emt 0:00:27]} 24. Nf3 {[%emt 0:01:29]} Nd7 {[%emt 0:00:33]} 25. Kg2 {[%emt 0:01:04]} Raf8 {[%emt 0:00:27]} 26. Nh4 {[%emt 0:02:13]} Nf6 {[%emt 0:00:40]} 27. Nf5 {[%emt 0:01:47]} Kh8 {[%emt 0:00:37]} 28. Ng3 {[%emt 0:00:55]} Nh7 {[%emt 0:00:39]} 29. f4 {[%emt 0:01:52]} Qe7 {[%emt 0:00:53]} 30. Qd3 {[%emt 0:00:40]} Nf6 {[%emt 0:00:32]} 31. Kh2 {[%emt 0:01:48]} Re8 {[%emt 0:00:30]} 32. Rae1 {[%emt 0:00:59]} Ne4 {[%emt 0:00:24]} 33. Nf5 {[%emt 0:01:11]} Qe6 {[%emt 0:00:37]} 34. Nh4 {[%emt 0:00:40]} g5 $1 {[%emt 0:01:10]} 35. Ng2 {[%emt 0:01:22]} Rfe7 {[%emt 0:01:05]} ({Black should try} 35... Rh7 $17 36. Qd1 Rg8) 36. Kg1 {[%emt 0:00:32]} Qd6 {[%emt 0:00:38]} 37. f5 {[%emt 0:00:34]} Qg3 $19 {[%emt 0:00:36]} 38. Qe2 {[%emt 0:00:30]} Qxh3 {[%emt 0:01:17]} 1/2-1/2

[Event "Balkan Youth Online-ch 2020"]
[Site "Online"]
[Date "2020.10.31"]
[Round "3.91"]
[White "Yilmaz, Duygu Sila"]
[Black "Mihailidou, Magdalini"]
[Result "0-1"]
[ECO "C54"]
[WhiteElo "1408"]
[BlackElo "1796"]
[Annotator "NA RC"]
[PlyCount "48"]
[EventDate "2020.10.31"]
[EventType "swiss"]
[SourceTitle "playchess.com"]
[Source "ChessBase"]
[SourceQuality "1"]
[TimeControl "1500+5"]

1. e4 {[%emt 0:00:00]} e5 {[%emt 0:00:09]} 2. Nf3 {[%emt 0:00:21]} Nc6 {[%emt 0:00:00]} 3. Bc4 {[%emt 0:00:00]} Bc5 {[%emt 0:00:04]} 4. c3 {[%emt 0:00:00]} Nf6 {[%emt 0:00:08]} 5. d3 {[%emt 0:00:02]} d6 {[%emt 0:00:01]} 6. Nbd2 {[%emt 0:00:33]} a6 {[%emt 0:00:05]} 7. Bb3 {[%emt 0:00:40]} h6 {[%emt 0:00:10]} 8. O-O {[%emt 0:01:15]} g5 {[%emt 0:00:34]} 9. Re1 {[%emt 0:09:20]} Ba7 {[%emt 0:06:34]} 10. Nf1 {[%emt 0:01:50]} g4 {[%emt 0:06:00]} 11. Nh4 {[%emt 0:02:18]} Nxe4 {[%emt 0:00:39]} 12. Rxe4 {[%emt 0:00:51]} Qxh4 {[%emt 0:00:00]} 13. Ng3 {[%emt 0:00:27]} f5 {[%emt 0:01:59]} 14. Re1 {[%emt 0:00:29]} Bd7 {[%emt 0:00:44]} 15. Bd5 {[%emt 0:03:53]} O-O-O {[%emt 0:00:40]} 16. b4 {[%emt 0:01:22]} f4 {[%emt 0:01:34]} 17. Ne4 {[%emt 0:00:13]} g3 {[%emt 0:00:09]} 18. hxg3 {[%emt 0:01:52]} fxg3 {[%emt 0:00:03]} 19. Be3 {[%emt 0:00:12]} Bxe3 {[%emt 0:02:54]} 20. Rxe3 {[%emt 0:00:00]} Qh2+ {[%emt 0:00:03]} 21. Kf1 {[%emt 0:00:00]} Qh1+ {[%emt 0:00:00]} 22. Ke2 {[%emt 0:00:00]} Bg4+ {[%emt 0:00:00]} 23. Rf3 {[%emt 0:01:00]} Qxg2 {[%emt 0:00:10]} 24. Qh1 {[%emt 0:00:07]} Bxf3+ {[%emt 0:00:00]} 0-1

[Event "Balkan Youth Online-ch 2020"]
[Site "Online"]
[Date "2020.10.31"]
[Round "3.92"]
[White "Lupascu, Diana-Elena"]
[Black "Eftovska, Lea"]
[Result "1-0"]
[ECO "E69"]
[WhiteElo "1668"]
[BlackElo "1587"]
[Annotator "NA RC"]
[PlyCount "69"]
[EventDate "2020.10.31"]
[EventType "swiss"]
[SourceTitle "playchess.com"]
[Source "ChessBase"]
[SourceQuality "1"]
[TimeControl "1500+5"]

1. d4 {[%emt 0:00:00]} Nf6 {[%emt 0:00:00]} 2. Nf3 {[%emt 0:00:00]} g6 {[%emt 0:00:00]} 3. g3 {[%emt 0:00:00]} Bg7 {[%emt 0:00:00]} 4. Bg2 {[%emt 0:00:00]} d6 {[%emt 0:00:00]} 5. O-O {[%emt 0:00:00]} O-O {[%emt 0:00:00]} 6. c4 {[%emt 0:00:00]} Nbd7 {[%emt 0:00:00]} 7. Nc3 {[%emt 0:00:00]} e5 {[%emt 0:00:00]} 8. e4 {[%emt 0:00:02]} exd4 {[%emt 0:00:00]} 9. Nxd4 {[%emt 0:00:00]} Re8 {[%emt 0:00:00]} 10. h3 {[%emt 0:00:02]} Nc5 {[%emt 0:00:00]} 11. Re1 {[%emt 0:00:15]} c6 {[%emt 0:01:03]} 12. Qc2 {[%emt 0:03:33]} Bd7 {[%emt 0:00:44]} 13. Nb3 {[%emt 0:02:06]} Ne6 {[%emt 0:02:15]} 14. Be3 {[%emt 0:02:13]} Qc8 {[%emt 0:02:33]} 15. Rad1 {[%emt 0:01:13]} Nc7 {[%emt 0:03:21]} 16. Kh2 {[%emt 0:00:40]} d5 {[%emt 0:01:01]} 17. cxd5 {[%emt 0:02:57]} cxd5 {[%emt 0:00:20]} 18. Nxd5 {[%emt 0:00:45]} Nfxd5 {[%emt 0:00:38]} 19. exd5 {[%emt 0:00:06]} Bf5 {[%emt 0:00:21]} 20. Qc4 {[%emt 0:02:29]} Bxb2 {[%emt 0:09:31]} 21. d6 {[%emt 0:00:44]} Ne6 {[%emt 0:03:38]} 22. Qxc8 {[%emt 0:00:25]} Rexc8 {[%emt 0:00:00]} 23. Bxb7 {[%emt 0:00:08]} Bc2 {[%emt 0:00:08]} 24. Rd2 {[%emt 0:01:43]} Bxb3 {[%emt 0:00:53]} 25. Rxb2 {[%emt 0:00:17]} Ba4 {[%emt 0:00:02]} 26. Bxa8 {[%emt 0:00:51]} Rxa8 {[%emt 0:00:00]} 27. Rb7 {[%emt 0:01:08]} a6 {[%emt 0:00:20]} 28. Rc1 {[%emt 0:02:17]} Rd8 {[%emt 0:00:00]} 29. Bh6 {[%emt 0:01:04]} Nd4 {[%emt 0:00:17]} 30. d7 {[%emt 0:00:43]} Bc6 {[%emt 0:00:01]} 31. Rc7 {[%emt 0:00:59]} Nf3+ {[%emt 0:00:10]} 32. Kh1 {[%emt 0:00:00]} Ne5+ {[%emt 0:00:07]} 33. R7xc6 {[%emt 0:00:01]} Nxc6 {[%emt 0:00:00]} 34. Rxc6 {[%emt 0:00:00]} f5 {[%emt 0:00:00]} 35. Rc8 {[%emt 0:00:00]} 1-0

[Event "Balkan Youth Online-ch 2020"]
[Site "Online"]
[Date "2020.10.31"]
[Round "3.93"]
[White "Ergazaki, Eirini"]
[Black "Shqau, Olta"]
[Result "1-0"]
[ECO "C12"]
[WhiteElo "1577"]
[BlackElo "1373"]
[Annotator "NA RC"]
[PlyCount "99"]
[EventDate "2020.10.31"]
[EventType "swiss"]
[SourceTitle "playchess.com"]
[Source "ChessBase"]
[SourceQuality "1"]
[TimeControl "5400+30"]

1. e4 {[%emt 1:05:20]} e6 {[%emt 1:05:24]} 2. d4 {[%emt 0:00:23]} d5 {[%emt 0:00:26]} 3. Nc3 {[%emt 0:00:22]} Nf6 {[%emt 0:01:10]} 4. Bg5 {[%emt 0:00:24]} c5 {[%emt 0:00:47]} 5. e5 {[%emt 0:01:45]} cxd4 {[%emt 0:00:48]} 6. Qxd4 {[%emt 0:01:05]} Nc6 {[%emt 0:00:39]} 7. Qa4 {[%emt 0:00:36]} h6 {[%emt 0:00:48]} 8. exf6 {[%emt 0:00:59]} hxg5 {[%emt 0:00:25]} 9. fxg7 {[%emt 0:00:42]} Bxg7 {[%emt 0:00:22]} 10. Nf3 {[%emt 0:00:50]} Bd7 {[%emt 0:00:28]} 11. Qg4 {[%emt 0:01:39]} f6 {[%emt 0:01:09]} 12. Bb5 {[%emt 0:02:25]} Qb6 {[%emt 0:00:55]} 13. O-O {[%emt 0:02:20]} O-O-O {[%emt 0:00:45]} 14. Bxc6 {[%emt 0:02:44]} Qxc6 {[%emt 0:00:34]} 15. Nd4 {[%emt 0:00:58]} Qb6 {[%emt 0:01:19]} 16. Nb3 {[%emt 0:00:32]} e5 {[%emt 0:01:27]} 17. Qd1 {[%emt 0:00:57]} d4 {[%emt 0:00:31]} 18. Ne2 {[%emt 0:01:33]} Qc6 {[%emt 0:00:39]} 19. c3 {[%emt 0:00:47]} dxc3 {[%emt 0:02:05]} 20. Nxc3 {[%emt 0:00:23]} Bh3 {[%emt 0:00:54]} 21. gxh3 {[%emt 0:02:44]} Rxd1 {[%emt 0:00:39]} 22. Rfxd1 {[%emt 0:00:45]} Rxh3 {[%emt 0:00:38]} 23. Nd5 {[%emt 0:00:49]} Qe6 {[%emt 0:00:43]} 24. Rac1+ {[%emt 0:00:50]} Kb8 {[%emt 0:00:56]} 25. Ne3 {[%emt 0:00:56]} Rh8 {[%emt 0:00:50]} 26. Nc5 {[%emt 0:00:41]} Qh3 {[%emt 0:01:48]} 27. Nf1 {[%emt 0:01:38]} Rc8 {[%emt 0:01:11]} 28. Nd7+ {[%emt 0:00:53]} Qxd7 {[%emt 0:01:05]} 29. Rxd7 {[%emt 0:00:37]} Rxc1 {[%emt 0:00:24]} 30. Rxg7 {[%emt 0:00:25]} Rc2 {[%emt 0:00:27]} 31. b4 {[%emt 0:00:56]} Rxa2 {[%emt 0:00:26]} 32. Ne3 {[%emt 0:00:22]} Rd2 {[%emt 0:01:05]} 33. Rf7 {[%emt 0:01:35]} Rd6 {[%emt 0:00:50]} 34. Kg2 {[%emt 0:00:52]} a6 {[%emt 0:00:30]} 35. Kf3 {[%emt 0:00:47]} Rd4 {[%emt 0:00:58]} 36. Rxf6 {[%emt 0:00:47]} Rxb4 {[%emt 0:00:24]} 37. Rf5 {[%emt 0:00:31]} Rf4+ {[%emt 0:00:28]} 38. Rxf4 {[%emt 0:00:45]} gxf4 {[%emt 0:00:27]} 39. Nc4 {[%emt 0:00:26]} b5 {[%emt 0:00:26]} 40. Nxe5 {[%emt 0:00:30]} Kc7 {[%emt 0:00:25]} 41. h4 {[%emt 0:00:58]} a5 {[%emt 0:00:33]} 42. h5 {[%emt 0:00:36]} a4 {[%emt 0:00:25]} 43. Nd3 {[%emt 0:01:14]} a3 {[%emt 0:00:45]} 44. Nb4 {[%emt 0:00:47]} Kb6 {[%emt 0:00:37]} 45. h6 {[%emt 0:00:25]} Kc5 {[%emt 0:00:22]} 46. Na2 {[%emt 0:00:51]} b4 {[%emt 0:00:23]} 47. h7 {[%emt 0:00:22]} b3 {[%emt 0:00:22]} 48. h8=Q {[%emt 0:00:23]} bxa2 {[%emt 0:00:39]} 49. Qa1 {[%emt 0:00:23]} Kb4 {[%emt 0:00:25]} 50. Qxa2 {[%emt 0:00:23]} 1-0

[Event "Balkan Youth Online-ch 2020"]
[Site "Online"]
[Date "2020.10.31"]
[Round "3.94"]
[White "Zeycan, Alara"]
[Black "Bojovic, Neda"]
[Result "0-1"]
[ECO "D00"]
[WhiteElo "1230"]
[BlackElo "1316"]
[Annotator "NA RC"]
[PlyCount "106"]
[EventDate "2020.10.31"]
[EventType "swiss"]
[SourceTitle "playchess.com"]
[Source "ChessBase"]
[SourceQuality "1"]
[TimeControl "1500+5"]

1. d4 {[%emt 0:00:00]} d5 {[%emt 0:00:00]} 2. e3 {[%emt 0:00:00]} e6 {[%emt 0:00:23]} 3. Bd3 {[%emt 0:00:00]} Nf6 {[%emt 0:00:03]} 4. Nd2 {[%emt 0:00:02]} c5 {[%emt 0:00:37]} 5. c3 {[%emt 0:00:00]} Nc6 {[%emt 0:00:00]} 6. f4 {[%emt 0:00:02]} Bd6 {[%emt 0:00:00]} 7. Ndf3 {[%emt 0:00:01]} O-O {[%emt 0:00:14]} 8. Ne5 {[%emt 0:00:03]} Qc7 {[%emt 0:00:42]} 9. Ngf3 {[%emt 0:00:03]} h6 {[%emt 0:03:59]} 10. O-O {[%emt 0:00:12]} cxd4 {[%emt 0:00:24]} 11. exd4 {[%emt 0:00:03]} Qb6 {[%emt 0:00:07]} 12. Nxc6 {[%emt 0:00:04]} bxc6 {[%emt 0:00:11]} 13. Ne5 {[%emt 0:00:05]} Ba6 {[%emt 0:00:09]} 14. Be3 {[%emt 0:00:13]} Bb5 {[%emt 0:02:03]} 15. b4 {[%emt 0:00:46]} Rab8 {[%emt 0:01:26]} 16. a4 {[%emt 0:00:13]} Bxd3 {[%emt 0:00:50]} 17. Qxd3 {[%emt 0:00:03]} Qc7 {[%emt 0:01:03]} 18. Rab1 {[%emt 0:00:56]} Ne4 {[%emt 0:00:18]} 19. Rf3 {[%emt 0:00:25]} a5 {[%emt 0:00:43]} 20. bxa5 {[%emt 0:00:09]} Rxb1+ {[%emt 0:00:17]} 21. Qxb1 {[%emt 0:00:00]} Qxa5 {[%emt 0:00:00]} 22. Nxc6 {[%emt 0:01:14]} Qxa4 {[%emt 0:00:53]} 23. Ne5 {[%emt 0:01:46]} Rb8 {[%emt 0:00:38]} 24. Qe1 {[%emt 0:00:29]} Qc2 {[%emt 0:00:34]} 25. Rf1 {[%emt 0:00:39]} Rb2 {[%emt 0:00:02]} 26. Bf2 {[%emt 0:00:25]} Nxc3 {[%emt 0:00:16]} 27. h3 {[%emt 0:00:45]} Bb4 {[%emt 0:00:17]} 28. Qe3 {[%emt 0:00:22]} Qe2 {[%emt 0:02:38]} 29. Nd3 {[%emt 0:00:59]} Qxe3 {[%emt 0:01:55]} 30. Bxe3 {[%emt 0:00:02]} Re2 {[%emt 0:00:36]} 31. Bc1 {[%emt 0:00:29]} Be7 {[%emt 0:00:36]} 32. Rf2 {[%emt 0:01:37]} Re4 {[%emt 0:00:34]} 33. Kf1 {[%emt 0:01:20]} Rxd4 {[%emt 0:00:11]} 34. Rd2 {[%emt 0:00:34]} Ne4 {[%emt 0:00:07]} 35. Rd1 {[%emt 0:00:12]} Bh4 {[%emt 0:00:27]} 36. Bb2 {[%emt 0:00:07]} Ng3+ {[%emt 0:00:35]} 37. Kf2 {[%emt 0:00:17]} Re4 {[%emt 0:00:03]} 38. Kf3 {[%emt 0:00:13]} Nf5 {[%emt 0:00:21]} 39. Bc1 {[%emt 0:01:10]} h5 {[%emt 0:00:59]} 40. g3 {[%emt 0:00:37]} Bxg3 {[%emt 0:00:38]} 41. Rg1 {[%emt 0:00:17]} Bh4 {[%emt 0:00:07]} 42. Nc5 {[%emt 0:00:28]} Nd4+ {[%emt 0:00:05]} 43. Kg2 {[%emt 0:00:02]} Re2+ {[%emt 0:00:04]} 44. Kf1 {[%emt 0:02:02]} Rf2+ {[%emt 0:00:02]} 45. Ke1 {[%emt 0:00:00]} Rc2+ {[%emt 0:00:00]} 46. Kd1 {[%emt 0:00:00]} Rxc5 {[%emt 0:00:00]} 47. Be3 {[%emt 0:00:00]} Rc4 {[%emt 0:00:00]} 48. Rf1 {[%emt 0:00:23]} Nf5 {[%emt 0:00:02]} 49. Bc1 {[%emt 0:00:08]} Ra4 {[%emt 0:00:28]} 50. Kc2 {[%emt 0:00:06]} Bf6 {[%emt 0:00:03]} 51. Kb3 {[%emt 0:00:05]} Ra1 {[%emt 0:00:04]} 52. Re1 {[%emt 0:00:06]} Nd4+ {[%emt 0:00:06]} 53. Kc3 {[%emt 0:00:12]} Nf3+ {[%emt 0:00:00]} 0-1

[Event "Balkan Youth Online-ch 2020"]
[Site "Online"]
[Date "2020.10.31"]
[Round "4.2"]
[White "Sava, Robert-Gabriel"]
[Black "Sevig, Mert Can"]
[Result "0-1"]
[ECO "B52"]
[WhiteElo "1716"]
[BlackElo "1472"]
[Annotator "NA RC"]
[PlyCount "68"]
[EventDate "2020.10.31"]
[EventType "swiss"]
[SourceTitle "playchess.com"]
[Source "ChessBase"]
[SourceQuality "1"]
[TimeControl "1500+5"]

1. e4 {[%emt 0:00:00]} c5 {[%emt 0:00:00]} 2. Nf3 {[%emt 0:00:00]} d6 {[%emt 0:00:00]} 3. Bb5+ {[%emt 0:00:00]} Bd7 {[%emt 0:00:00]} 4. Bxd7+ {[%emt 0:00:00]} Qxd7 {[%emt 0:00:00]} 5. O-O {[%emt 0:00:00]} Nc6 {[%emt 0:00:00]} 6. c3 {[%emt 0:00:00]} Nf6 {[%emt 0:00:00]} 7. Re1 {[%emt 0:00:00]} e6 {[%emt 0:00:00]} 8. d4 {[%emt 0:00:00]} cxd4 {[%emt 0:00:05]} 9. cxd4 {[%emt 0:00:00]} Be7 {[%emt 0:00:00]} 10. Nc3 {[%emt 0:00:00]} Rc8 {[%emt 0:00:02]} 11. Be3 {[%emt 0:00:10]} O-O {[%emt 0:00:41]} 12. h3 {[%emt 0:00:34]} Rfd8 {[%emt 0:00:17]} 13. Kh1 {[%emt 0:01:04]} a6 {[%emt 0:00:10]} 14. Ng1 {[%emt 0:00:54]} b5 {[%emt 0:00:11]} 15. f4 {[%emt 0:00:34]} Na5 {[%emt 0:00:57]} 16. e5 {[%emt 0:01:35]} dxe5 {[%emt 0:00:13]} 17. dxe5 {[%emt 0:00:22]} Nd5 {[%emt 0:00:16]} 18. Nxd5 {[%emt 0:00:00]} Qxd5 {[%emt 0:00:24]} 19. Bb6 {[%emt 0:01:28]} Qxd1 {[%emt 0:00:27]} 20. Raxd1 {[%emt 0:00:00]} Rxd1 {[%emt 0:00:02]} 21. Rxd1 {[%emt 0:00:00]} Nc4 {[%emt 0:00:16]} 22. Rd7 {[%emt 0:00:42]} Bh4 {[%emt 0:01:28]} 23. Bd4 {[%emt 0:00:28]} h6 {[%emt 0:01:00]} 24. Ne2 {[%emt 0:01:23]} Nxb2 {[%emt 0:01:43]} 25. g3 {[%emt 0:00:26]} Rc2 {[%emt 0:00:12]} 26. gxh4 {[%emt 0:00:50]} Rxe2 {[%emt 0:00:08]} 27. Rd8+ {[%emt 0:00:07]} Kh7 {[%emt 0:00:07]} 28. Ra8 {[%emt 0:00:58]} Nd3 {[%emt 0:00:19]} 29. Rxa6 {[%emt 0:00:18]} Nxf4 {[%emt 0:00:17]} 30. a3 {[%emt 0:00:42]} Re4 {[%emt 0:00:55]} 31. Bb2 {[%emt 0:01:11]} Re1+ {[%emt 0:00:19]} 32. Kh2 {[%emt 0:00:08]} Re2+ {[%emt 0:00:04]} 33. Kg3 {[%emt 0:00:00]} Nh5+ {[%emt 0:00:03]} 34. Kg4 {[%emt 0:00:07]} Rg2+ {[%emt 0:00:16]} 0-1

[Event "Balkan Youth Online-ch 2020"]
[Site "Online"]
[Date "2020.10.31"]
[Round "4.5"]
[White "Domurcak, Doruk"]
[Black "Gkavardinas, Antonios"]
[Result "0-1"]
[ECO "A36"]
[WhiteElo "1244"]
[BlackElo "1606"]
[Annotator "NA RC"]
[PlyCount "112"]
[EventDate "2020.10.31"]
[EventType "swiss"]
[SourceTitle "playchess.com"]
[Source "ChessBase"]
[SourceQuality "1"]
[TimeControl "1500+5"]

1. e4 {[%emt 0:00:00]} c5 {[%emt 0:00:00]} 2. c4 {[%emt 0:00:00]} Nc6 {[%emt 0:00:00]} 3. Nc3 {[%emt 0:00:00]} g6 {[%emt 0:00:00]} 4. g3 {[%emt 0:00:00]} Bg7 {[%emt 0:00:00]} 5. Bg2 {[%emt 0:00:00]} Nf6 {[%emt 0:00:01]} 6. Nge2 {[%emt 0:00:00]} O-O {[%emt 0:00:00]} 7. O-O {[%emt 0:00:00]} d6 {[%emt 0:00:08]} 8. d3 {[%emt 0:00:00]} a6 {[%emt 0:00:19]} 9. h3 {[%emt 0:00:06]} Rb8 {[%emt 0:00:49]} 10. Be3 {[%emt 0:00:11]} b5 {[%emt 0:00:10]} 11. b3 {[%emt 0:00:02]} Bd7 {[%emt 0:00:30]} 12. Rc1 {[%emt 0:00:07]} Qa5 {[%emt 0:01:33]} 13. Qd2 {[%emt 0:00:20]} Ne8 {[%emt 0:00:15]} 14. f4 {[%emt 0:00:19]} Nd4 {[%emt 0:00:28]} 15. Bxd4 {[%emt 0:01:10]} cxd4 {[%emt 0:00:08]} 16. Nb1 {[%emt 0:00:01]} Qb6 {[%emt 0:00:21]} 17. Na3 {[%emt 0:01:03]} f5 {[%emt 0:01:06]} 18. Kh2 {[%emt 0:00:39]} fxe4 {[%emt 0:01:02]} 19. Bxe4 {[%emt 0:00:18]} Nf6 {[%emt 0:00:13]} 20. Bg2 {[%emt 0:00:07]} e5 {[%emt 0:00:19]} 21. Nc2 {[%emt 0:00:22]} Bc6 {[%emt 0:00:17]} 22. Bxc6 {[%emt 0:02:22]} Qxc6 {[%emt 0:00:02]} 23. Rce1 {[%emt 0:00:18]} Nd7 {[%emt 0:00:52]} 24. Nb4 {[%emt 0:00:25]} Qb7 {[%emt 0:00:10]} 25. Nd5 {[%emt 0:01:04]} bxc4 {[%emt 0:00:08]} 26. bxc4 {[%emt 0:00:35]} Qb2 {[%emt 0:00:08]} 27. Rd1 {[%emt 0:01:38]} Nc5 {[%emt 0:00:47]} 28. Rf2 {[%emt 0:01:20]} e4 {[%emt 0:00:52]} 29. Qxb2 {[%emt 0:00:50]} Rxb2 {[%emt 0:00:09]} 30. dxe4 {[%emt 0:00:17]} d3 {[%emt 0:00:17]} 31. Re1 {[%emt 0:04:27]} Nxe4 {[%emt 0:01:17]} 32. Rg2 {[%emt 0:00:05]} dxe2 {[%emt 0:00:12]} 33. Rgxe2 {[%emt 0:00:02]} Rxe2+ {[%emt 0:00:09]} 34. Rxe2 {[%emt 0:00:00]} Nc3 {[%emt 0:00:09]} 35. Nxc3 {[%emt 0:00:08]} Bxc3 {[%emt 0:00:00]} 36. Re6 {[%emt 0:00:00]} Bb4 {[%emt 0:00:00]} 37. Kg2 {[%emt 0:00:04]} Kf7 {[%emt 0:00:00]} 38. Re4 {[%emt 0:00:00]} Re8 {[%emt 0:00:00]} 39. Kf3 {[%emt 0:00:03]} Rxe4 {[%emt 0:00:00]} 40. Kxe4 {[%emt 0:00:00]} Ke6 {[%emt 0:00:00]} 41. g4 {[%emt 0:00:00]} Ba3 {[%emt 0:00:00]} 42. Kd4 {[%emt 0:00:00]} a5 {[%emt 0:00:00]} 43. Ke4 {[%emt 0:00:07]} a4 {[%emt 0:00:00]} 44. Kd4 {[%emt 0:00:00]} Bb2+ {[%emt 0:00:00]} 45. Ke4 {[%emt 0:00:00]} a3 {[%emt 0:00:00]} 46. f5+ {[%emt 0:00:28]} gxf5+ {[%emt 0:00:00]} 47. gxf5+ {[%emt 0:00:00]} Kf6 {[%emt 0:00:00]} 48. Kf4 {[%emt 0:00:25]} h5 {[%emt 0:00:00]} 49. Ke4 {[%emt 0:00:23]} Bc1 {[%emt 0:00:00]} 50. h4 {[%emt 0:00:15]} Bd2 {[%emt 0:00:00]} 51. Kd5 {[%emt 0:00:03]} Kxf5 {[%emt 0:00:00]} 52. Kxd6 {[%emt 0:00:00]} Kg4 {[%emt 0:00:00]} 53. c5 {[%emt 0:00:00]} Kxh4 {[%emt 0:00:00]} 54. Ke5 {[%emt 0:00:00]} Kg4 {[%emt 0:00:00]} 55. c6 {[%emt 0:00:00]} Bf4+ {[%emt 0:00:00]} 56. Ke6 {[%emt 0:00:00]} h4 {[%emt 0:00:00]} 0-1